[Event "Early-Titled-Tuesday-Blitz-September-26-2023"]
[Site "Chess.com"]
[Date "2023.09.26"]
[Round "10"]
[White "HrvojeZagreb"]
[Black "Aleksandar-Topalov"]
[Result "1-0"]
[WhiteElo "2299"]
[BlackElo "2374"]
[TimeControl "180+1"]
[EndTime "9:52:45 PDT"]
[Termination "HrvojeZagreb won by resignation"]

1. f4 {[%clk 0:02:50.8]} 1... Nf6 {[%clk 0:02:58.6]} 2. b3 {[%clk 0:02:48.1]}
2... g6 {[%clk 0:02:56.1]} 3. Bb2 {[%clk 0:02:48.3]} 3... Bg7 {[%clk 0:02:56.5]}
4. Nf3 {[%clk 0:02:48.4]} 4... O-O {[%clk 0:02:56.7]} 5. d3 {[%clk 0:02:48]}
5... d5 {[%clk 0:02:55.4]} 6. e3 {[%clk 0:02:47.9]} 6... c5 {[%clk 0:02:55.5]}
7. Be2 {[%clk 0:02:43.4]} 7... Nc6 {[%clk 0:02:47.8]} 8. O-O {[%clk 0:02:42.2]}
8... d4 {[%clk 0:02:47.6]} 9. e4 {[%clk 0:02:34.4]} 9... Ng4 {[%clk 0:02:46.3]}
10. Bc1 {[%clk 0:02:32.4]} 10... Ne3 {[%clk 0:02:29.3]} 11. Bxe3 {[%clk
0:02:32]} 11... dxe3 {[%clk 0:02:29.8]} 12. c3 {[%clk 0:02:32.2]} 12... e5
{[%clk 0:02:23.8]} 13. fxe5 {[%clk 0:02:28.7]} 13... Nxe5 {[%clk 0:02:23.9]} 14.
Nxe5 {[%clk 0:02:24.2]} 14... Bxe5 {[%clk 0:02:23.9]} 15. Qc1 {[%clk 0:02:24.3]}
15... Qh4 {[%clk 0:02:18.6]} 16. g3 {[%clk 0:02:09.2]} 16... Qh6 {[%clk
0:01:46.7]} 17. Rf3 {[%clk 0:02:02.5]} 17... f5 {[%clk 0:01:26.2]} 18. Qxe3
{[%clk 0:01:59.6]} 18... f4 {[%clk 0:01:25.5]} 19. Qxc5 {[%clk 0:01:55.2]} 19...
fxg3 {[%clk 0:01:14.5]} 20. Qd5+ {[%clk 0:01:52.6]} 1-0

[Event "Early-Titled-Tuesday-Blitz-September-26-2023"]
[Site "Chess.com"]
[Date "2023.09.26"]
[Round "10"]
[White "rasmussvane"]
[Black "DonkyDonkyDonkey"]
[Result "1-0"]
[WhiteElo "2993"]
[BlackElo "2752"]
[TimeControl "180+1"]
[EndTime "9:52:58 PDT"]
[Termination "rasmussvane won by resignation"]

1. Nf3 {[%clk 0:03:00.9]} 1... d5 {[%clk 0:03:00.2]} 2. g3 {[%clk 0:03:01]} 2...
Nc6 {[%clk 0:03:00.6]} 3. d4 {[%clk 0:03:00.6]} 3... Bf5 {[%clk 0:03:01.1]} 4.
Bg2 {[%clk 0:03:00.4]} 4... Nb4 {[%clk 0:03:01]} 5. Na3 {[%clk 0:03:00.5]} 5...
e6 {[%clk 0:03:01.4]} 6. O-O {[%clk 0:03:00.2]} 6... Nc6 {[%clk 0:03:01.7]} 7.
Nb1 {[%clk 0:02:59.3]} 7... Nb4 {[%clk 0:03:01.8]} 8. Na3 {[%clk 0:02:58.6]}
8... Nc6 {[%clk 0:03:01.9]} 9. Nb1 {[%clk 0:02:59.1]} 9... Nb4 {[%clk
0:03:02.1]} 10. Ne1 {[%clk 0:02:59.6]} 10... Nf6 {[%clk 0:03:02.1]} 11. c3
{[%clk 0:02:59.2]} 11... Nc6 {[%clk 0:03:02.2]} 12. Nd3 {[%clk 0:02:59.2]} 12...
Be7 {[%clk 0:02:59.6]} 13. Bg5 {[%clk 0:02:58]} 13... h6 {[%clk 0:02:59.5]} 14.
Bxf6 {[%clk 0:02:58.2]} 14... Bxf6 {[%clk 0:03:00.4]} 15. Re1 {[%clk 0:02:58.7]}
15... h5 {[%clk 0:02:53.6]} 16. Nd2 {[%clk 0:02:46.9]} 16... h4 {[%clk
0:02:53.1]} 17. e4 {[%clk 0:02:46.3]} 17... dxe4 {[%clk 0:02:53.2]} 18. Nxe4
{[%clk 0:02:47.2]} 18... hxg3 {[%clk 0:02:51.4]} 19. hxg3 {[%clk 0:02:45.7]}
19... Bxe4 {[%clk 0:02:21.2]} 20. Bxe4 {[%clk 0:02:43.2]} 20... Qd6 {[%clk
0:02:12.8]} 21. Nc5 {[%clk 0:02:39.8]} 21... O-O-O {[%clk 0:01:31.5]} 22. Qb3
{[%clk 0:02:37.4]} 22... b6 {[%clk 0:01:22.5]} 23. Qb5 {[%clk 0:02:36.7]} 23...
Na5 {[%clk 0:00:51.1]} 24. Qa6+ {[%clk 0:02:20.7]} 24... Kb8 {[%clk 0:00:50.9]}
25. Nb7 {[%clk 0:02:21.4]} 1-0

[Event "Early-Titled-Tuesday-Blitz-September-26-2023"]
[Site "Chess.com"]
[Date "2023.09.26"]
[Round "10"]
[White "Balla_Tamas"]
[Black "zozik"]
[Result "1-0"]
[WhiteElo "2412"]
[BlackElo "2314"]
[TimeControl "180+1"]
[EndTime "9:53:02 PDT"]
[Termination "Balla_Tamas won by resignation"]

1. e4 {[%clk 0:02:58.8]} 1... e6 {[%clk 0:02:58.2]} 2. d4 {[%clk 0:02:57.8]}
2... d5 {[%clk 0:02:55]} 3. Nd2 {[%clk 0:02:58.3]} 3... c5 {[%clk 0:02:54.5]} 4.
exd5 {[%clk 0:02:56.6]} 4... Qxd5 {[%clk 0:02:55.4]} 5. Ngf3 {[%clk 0:02:56.6]}
5... cxd4 {[%clk 0:02:55.6]} 6. Bc4 {[%clk 0:02:55]} 6... Qd6 {[%clk 0:02:55.5]}
7. O-O {[%clk 0:02:52.2]} 7... Nf6 {[%clk 0:02:55.6]} 8. Nb3 {[%clk 0:02:49.7]}
8... Nc6 {[%clk 0:02:55.7]} 9. Nbxd4 {[%clk 0:02:49.8]} 9... Nxd4 {[%clk
0:02:56.6]} 10. Nxd4 {[%clk 0:02:50.4]} 10... a6 {[%clk 0:02:42.3]} 11. Re1
{[%clk 0:02:47.9]} 11... Qc7 {[%clk 0:02:41.7]} 12. Bb3 {[%clk 0:02:45.9]} 12...
Bd6 {[%clk 0:02:42.2]} 13. Nf5 {[%clk 0:02:45.1]} 13... Bxh2+ {[%clk 0:02:40.2]}
14. Kh1 {[%clk 0:02:43.6]} 14... O-O {[%clk 0:02:40.6]} 15. Nxg7 {[%clk
0:02:37]} 15... Rd8 {[%clk 0:02:40.5]} 16. Qf3 {[%clk 0:02:34.1]} 16... Kxg7
{[%clk 0:02:41.1]} 17. Bh6+ {[%clk 0:02:32.6]} 17... Kg6 {[%clk 0:02:40.4]} 18.
c3 {[%clk 0:02:33.3]} 18... Nh5 {[%clk 0:02:38.1]} 19. Bc1 {[%clk 0:02:24.7]}
19... Bf4 {[%clk 0:02:25.2]} 20. Bc2+ {[%clk 0:02:07.9]} 20... f5 {[%clk
0:02:20.7]} 21. g4 {[%clk 0:01:54.4]} 21... Bxc1 {[%clk 0:02:19.6]} 22. gxh5+
{[%clk 0:01:50.7]} 22... Kf7 {[%clk 0:02:17.1]} 23. Raxc1 {[%clk 0:01:47.7]}
23... b5 {[%clk 0:02:17.7]} 24. Be4 {[%clk 0:00:56.9]} 24... Rb8 {[%clk
0:02:12.1]} 25. Rcd1 {[%clk 0:00:55.9]} 25... Bb7 {[%clk 0:02:07.9]} 26. Bxb7
{[%clk 0:00:53.2]} 26... Qxb7 {[%clk 0:02:08.8]} 27. Qxb7+ {[%clk 0:00:53.5]}
27... Rxb7 {[%clk 0:02:07.5]} 28. Rxd8 {[%clk 0:00:54.1]} 1-0

[Event "Early-Titled-Tuesday-Blitz-September-26-2023"]
[Site "Chess.com"]
[Date "2023.09.26"]
[Round "10"]
[White "kidagent"]
[Black "stepanosinovsky"]
[Result "0-1"]
[WhiteElo "2267"]
[BlackElo "2376"]
[TimeControl "180+1"]
[EndTime "9:53:19 PDT"]
[Termination "stepanosinovsky won by resignation"]

1. c4 {[%clk 0:03:00.9]} 1... Nf6 {[%clk 0:02:57]} 2. g3 {[%clk 0:02:59.9]} 2...
g6 {[%clk 0:02:39.6]} 3. Bg2 {[%clk 0:02:59.3]} 3... Bg7 {[%clk 0:02:37.4]} 4.
Nc3 {[%clk 0:02:59.9]} 4... O-O {[%clk 0:02:27.6]} 5. e3 {[%clk 0:02:58.9]} 5...
d6 {[%clk 0:02:28.5]} 6. Nge2 {[%clk 0:02:58.7]} 6... Nbd7 {[%clk 0:02:28.6]} 7.
O-O {[%clk 0:02:58]} 7... e5 {[%clk 0:02:27.9]} 8. b3 {[%clk 0:02:58.4]} 8...
Re8 {[%clk 0:02:27]} 9. Bb2 {[%clk 0:02:59]} 9... a5 {[%clk 0:02:05.6]} 10. f4
{[%clk 0:02:58.6]} 10... Nc5 {[%clk 0:01:56.7]} 11. fxe5 {[%clk 0:02:54.8]}
11... dxe5 {[%clk 0:01:47.8]} 12. d4 {[%clk 0:02:53.7]} 12... exd4 {[%clk
0:01:25.8]} 13. exd4 {[%clk 0:02:54.6]} 13... Nce4 {[%clk 0:01:04.9]} 14. d5
{[%clk 0:02:53]} 14... Ng5 {[%clk 0:00:50.2]} 15. Nd4 {[%clk 0:02:39.1]} 15...
Ng4 {[%clk 0:00:42.6]} 16. Qd2 {[%clk 0:02:21.1]} 16... Ne3 {[%clk 0:00:39.7]}
17. Rfe1 {[%clk 0:02:15]} 17... Nxg2 {[%clk 0:00:34.8]} 18. Kxg2 {[%clk
0:02:10.9]} 18... Bh3+ {[%clk 0:00:30.3]} 19. Kf2 {[%clk 0:02:08.9]} 19... Qf6+
{[%clk 0:00:25.2]} 0-1

[Event "Early-Titled-Tuesday-Blitz-September-26-2023"]
[Site "Chess.com"]
[Date "2023.09.26"]
[Round "10"]
[White "Agibileg"]
[Black "Bauman_Guy"]
[Result "1-0"]
[WhiteElo "2687"]
[BlackElo "2862"]
[TimeControl "180+1"]
[EndTime "9:54:04 PDT"]
[Termination "Agibileg won by checkmate"]

1. d4 {[%clk 0:03:00]} 1... Nf6 {[%clk 0:02:59.6]} 2. c4 {[%clk 0:03:00.3]} 2...
b6 {[%clk 0:02:59.2]} 3. f3 {[%clk 0:02:59.3]} 3... g6 {[%clk 0:02:57.2]} 4. e4
{[%clk 0:02:58.6]} 4... Bg7 {[%clk 0:02:58.1]} 5. Nc3 {[%clk 0:02:58.7]} 5...
Bb7 {[%clk 0:02:56.5]} 6. Be3 {[%clk 0:02:59]} 6... d6 {[%clk 0:02:56.5]} 7. Qd2
{[%clk 0:02:59.4]} 7... e5 {[%clk 0:02:55.4]} 8. Nge2 {[%clk 0:02:57.5]} 8...
Nc6 {[%clk 0:02:53.8]} 9. d5 {[%clk 0:02:56.6]} 9... Ne7 {[%clk 0:02:54]} 10. h4
{[%clk 0:02:54.6]} 10... h5 {[%clk 0:02:53.1]} 11. O-O-O {[%clk 0:02:45.8]}
11... a5 {[%clk 0:02:52.4]} 12. Kb1 {[%clk 0:02:46]} 12... a4 {[%clk 0:02:51.3]}
13. Nc1 {[%clk 0:02:33.4]} 13... Nd7 {[%clk 0:02:50]} 14. g4 {[%clk 0:02:31.1]}
14... Nc5 {[%clk 0:02:49.1]} 15. Be2 {[%clk 0:02:21.1]} 15... Bc8 {[%clk
0:02:48.8]} 16. gxh5 {[%clk 0:02:18.4]} 16... Rxh5 {[%clk 0:02:47.1]} 17. f4
{[%clk 0:02:18.4]} 17... exf4 {[%clk 0:02:47.4]} 18. Bxc5 {[%clk 0:02:16.9]}
18... bxc5 {[%clk 0:02:43.8]} 19. Bxh5 {[%clk 0:02:17.1]} 19... gxh5 {[%clk
0:02:44.7]} 20. Qxf4 {[%clk 0:02:04.5]} 20... a3 {[%clk 0:02:34.5]} 21. Rdf1
{[%clk 0:01:54.4]} 21... f5 {[%clk 0:02:27]} 22. Nb3 {[%clk 0:01:47.2]} 22...
Ba6 {[%clk 0:02:22]} 23. exf5 {[%clk 0:01:44.9]} 23... Be5 {[%clk 0:02:20.5]}
24. Qe4 {[%clk 0:01:40.6]} 24... Ng8 {[%clk 0:02:13.5]} 25. f6 {[%clk
0:01:37.9]} 25... Nxf6 {[%clk 0:02:13.2]} 26. Qg6+ {[%clk 0:01:34.4]} 26... Kd7
{[%clk 0:02:04.3]} 27. Qf5+ {[%clk 0:01:33.3]} 27... Ke8 {[%clk 0:02:04.8]} 28.
Ne4 {[%clk 0:01:28.3]} 28... Bxc4 {[%clk 0:01:43.3]} 29. Qe6+ {[%clk 0:01:28.4]}
29... Kf8 {[%clk 0:01:38]} 30. Nxf6 {[%clk 0:00:58.6]} 30... Bd3+ {[%clk
0:01:22.8]} 31. Kc1 {[%clk 0:00:58.6]} 31... axb2+ {[%clk 0:01:23.5]} 32. Kd2
{[%clk 0:00:58.9]} 32... Bxf1 {[%clk 0:01:19]} 33. Qg8+ {[%clk 0:00:58.7]} 33...
Ke7 {[%clk 0:01:17.2]} 34. Qg7# {[%clk 0:00:59.6]} 1-0

[Event "Early-Titled-Tuesday-Blitz-September-26-2023"]
[Site "Chess.com"]
[Date "2023.09.26"]
[Round "10"]
[White "WPWPWP-2015"]
[Black "KamlaPasand"]
[Result "0-1"]
[WhiteElo "2507"]
[BlackElo "2447"]
[TimeControl "180+1"]
[EndTime "9:54:04 PDT"]
[Termination "KamlaPasand won by checkmate"]

1. d4 {[%clk 0:02:59.4]} 1... d6 {[%clk 0:03:00]} 2. c4 {[%clk 0:02:56.8]} 2...
Nf6 {[%clk 0:03:00.9]} 3. Nc3 {[%clk 0:02:56.2]} 3... g6 {[%clk 0:03:01.8]} 4.
e4 {[%clk 0:02:55.4]} 4... Bg7 {[%clk 0:03:02.7]} 5. Nf3 {[%clk 0:02:54.9]} 5...
O-O {[%clk 0:03:03.6]} 6. Be2 {[%clk 0:02:53.8]} 6... e5 {[%clk 0:03:03.6]} 7.
O-O {[%clk 0:02:53.4]} 7... Nc6 {[%clk 0:03:03.6]} 8. d5 {[%clk 0:02:53.3]} 8...
Ne7 {[%clk 0:03:04.3]} 9. Ne1 {[%clk 0:02:51.3]} 9... Nd7 {[%clk 0:03:04.6]} 10.
Nd3 {[%clk 0:02:51.1]} 10... f5 {[%clk 0:03:04.9]} 11. f3 {[%clk 0:02:51.1]}
11... Nf6 {[%clk 0:03:04.4]} 12. Be3 {[%clk 0:02:50.2]} 12... f4 {[%clk
0:03:04.7]} 13. Bf2 {[%clk 0:02:50]} 13... g5 {[%clk 0:03:05.2]} 14. c5 {[%clk
0:02:47.3]} 14... h5 {[%clk 0:03:04]} 15. h3 {[%clk 0:02:46.2]} 15... Ng6 {[%clk
0:03:03.9]} 16. cxd6 {[%clk 0:02:45.2]} 16... cxd6 {[%clk 0:03:03.5]} 17. Nb5
{[%clk 0:02:45.3]} 17... g4 {[%clk 0:02:55.3]} 18. fxg4 {[%clk 0:02:23.3]} 18...
hxg4 {[%clk 0:02:54.4]} 19. Bxg4 {[%clk 0:02:15.5]} 19... Nxg4 {[%clk
0:02:44.7]} 20. hxg4 {[%clk 0:02:15.1]} 20... Bf6 {[%clk 0:02:44.8]} 21. Rc1
{[%clk 0:02:06.2]} 21... Rf7 {[%clk 0:02:45]} 22. Nxa7 {[%clk 0:01:55.3]} 22...
Bd7 {[%clk 0:02:43]} 23. a4 {[%clk 0:01:45.9]} 23... Rh7 {[%clk 0:02:41.7]} 24.
Nb5 {[%clk 0:01:38.1]} 24... Qf8 {[%clk 0:02:40.8]} 25. Qf3 {[%clk 0:01:18.7]}
25... Qh6 {[%clk 0:02:35]} 26. Qh3 {[%clk 0:01:18.2]} 26... Qg5 {[%clk
0:02:35.1]} 27. Qxh7+ {[%clk 0:01:07.1]} 27... Kxh7 {[%clk 0:02:36]} 28. Rc7
{[%clk 0:01:06.7]} 28... Qxg4 {[%clk 0:02:30]} 29. Ba7 {[%clk 0:00:24.9]} 29...
Nh4 {[%clk 0:02:27.9]} 30. Ne1 {[%clk 0:00:18.8]} 30... f3 {[%clk 0:02:24.5]}
31. Rf2 {[%clk 0:00:14]} 31... fxg2 {[%clk 0:02:23.2]} 32. Nxg2 {[%clk
0:00:11.6]} 32... Rg8 {[%clk 0:02:22.1]} 33. Rcc2 {[%clk 0:00:03.3]} 33... Qd1+
{[%clk 0:02:16.3]} 34. Kh2 {[%clk 0:00:03]} 34... Rxg2+ {[%clk 0:02:14.3]} 35.
Rxg2 {[%clk 0:00:02.7]} 35... Nf3+ {[%clk 0:02:14.8]} 36. Kg3 {[%clk 0:00:03]}
36... Bh4# {[%clk 0:02:15]} 0-1

[Event "Early-Titled-Tuesday-Blitz-September-26-2023"]
[Site "Chess.com"]
[Date "2023.09.26"]
[Round "10"]
[White "KVAIDAN"]
[Black "ChainedDowntohell"]
[Result "0-1"]
[WhiteElo "2285"]
[BlackElo "2462"]
[TimeControl "180+1"]
[EndTime "9:54:17 PDT"]
[Termination "ChainedDowntohell won by checkmate"]

1. f4 {[%clk 0:02:57.3]} 1... b6 {[%clk 0:02:58.7]} 2. Nf3 {[%clk 0:02:56.3]}
2... Bb7 {[%clk 0:02:58.8]} 3. d3 {[%clk 0:02:51.6]} 3... c5 {[%clk 0:02:55.2]}
4. e4 {[%clk 0:02:48.8]} 4... d5 {[%clk 0:02:52]} 5. e5 {[%clk 0:02:42.5]} 5...
e6 {[%clk 0:02:49.2]} 6. Be2 {[%clk 0:02:43.4]} 6... Nc6 {[%clk 0:02:41.4]} 7.
O-O {[%clk 0:02:44.3]} 7... h5 {[%clk 0:02:32.8]} 8. c3 {[%clk 0:02:43.1]} 8...
d4 {[%clk 0:02:26.2]} 9. Qe1 {[%clk 0:02:44]} 9... Nh6 {[%clk 0:02:24.4]} 10. c4
{[%clk 0:02:44.9]} 10... Nf5 {[%clk 0:02:23]} 11. Ng5 {[%clk 0:02:37.7]} 11...
Be7 {[%clk 0:02:15.2]} 12. Ne4 {[%clk 0:02:36.1]} 12... Qd7 {[%clk 0:02:01]} 13.
Na3 {[%clk 0:02:32.8]} 13... a6 {[%clk 0:01:44.1]} 14. Nc2 {[%clk 0:02:32.3]}
14... b5 {[%clk 0:01:36.5]} 15. b4 {[%clk 0:02:27.5]} 15... Nxb4 {[%clk
0:01:27]} 16. Nxb4 {[%clk 0:02:27.4]} 16... cxb4 {[%clk 0:01:26.7]} 17. c5
{[%clk 0:02:27.9]} 17... Bxe4 {[%clk 0:01:21.8]} 18. dxe4 {[%clk 0:02:27.4]}
18... Bxc5 {[%clk 0:01:05.7]} 19. Bd3 {[%clk 0:02:22.5]} 19... Ne3 {[%clk
0:01:02.9]} 20. Rf3 {[%clk 0:02:21.9]} 20... g6 {[%clk 0:00:48.2]} 21. Bd2
{[%clk 0:02:19]} 21... O-O {[%clk 0:00:33.3]} 22. f5 {[%clk 0:02:15]} 22... Qc7
{[%clk 0:00:24.4]} 23. Rc1 {[%clk 0:02:11.6]} 23... Qxe5 {[%clk 0:00:24]} 24.
fxg6 {[%clk 0:02:08.2]} 24... fxg6 {[%clk 0:00:23]} 25. Rg3 {[%clk 0:02:08.3]}
25... Kh7 {[%clk 0:00:20.3]} 26. Qe2 {[%clk 0:02:04.6]} 26... Rac8 {[%clk
0:00:18.9]} 27. Re1 {[%clk 0:01:56]} 27... Bb6 {[%clk 0:00:17.4]} 28. Bc1 {[%clk
0:01:51.5]} 28... Rf6 {[%clk 0:00:14.3]} 29. Bb2 {[%clk 0:01:50.8]} 29... Rcf8
{[%clk 0:00:09.8]} 30. Qxe3 {[%clk 0:01:51.7]} 30... dxe3 {[%clk 0:00:10]} 31.
Bxe5 {[%clk 0:01:50.6]} 31... e2+ {[%clk 0:00:10.6]} 32. Re3 {[%clk 0:01:46.7]}
32... Rf1+ {[%clk 0:00:09.2]} 33. Rxf1 {[%clk 0:01:46.6]} 33... Rxf1# {[%clk
0:00:10.1]} 0-1

[Event "Early-Titled-Tuesday-Blitz-September-26-2023"]
[Site "Chess.com"]
[Date "2023.09.26"]
[Round "10"]
[White "skkeyan1309"]
[Black "Sinquefield"]
[Result "1-0"]
[WhiteElo "2731"]
[BlackElo "2552"]
[TimeControl "180+1"]
[EndTime "9:54:19 PDT"]
[Termination "skkeyan1309 won by resignation"]

1. Nf3 {[%clk 0:03:00.9]} 1... Nf6 {[%clk 0:02:58.6]} 2. c4 {[%clk 0:02:59.1]}
2... d6 {[%clk 0:02:58.8]} 3. Nc3 {[%clk 0:02:59]} 3... e5 {[%clk 0:02:58.1]} 4.
d4 {[%clk 0:02:58.9]} 4... Nbd7 {[%clk 0:02:58.4]} 5. e4 {[%clk 0:02:58.1]} 5...
Be7 {[%clk 0:02:58.1]} 6. Be2 {[%clk 0:02:55.6]} 6... O-O {[%clk 0:02:56.6]} 7.
O-O {[%clk 0:02:53.3]} 7... c6 {[%clk 0:02:56.7]} 8. h3 {[%clk 0:02:49.5]} 8...
a6 {[%clk 0:02:55.3]} 9. Be3 {[%clk 0:02:49]} 9... b5 {[%clk 0:02:53.6]} 10. Qc2
{[%clk 0:02:43.1]} 10... Re8 {[%clk 0:02:48.2]} 11. Rfd1 {[%clk 0:02:32.9]}
11... Qc7 {[%clk 0:02:46.8]} 12. Rac1 {[%clk 0:02:29]} 12... b4 {[%clk
0:02:42.6]} 13. Na4 {[%clk 0:02:28]} 13... a5 {[%clk 0:02:41.6]} 14. dxe5 {[%clk
0:02:19.8]} 14... dxe5 {[%clk 0:02:35.2]} 15. c5 {[%clk 0:02:20]} 15... Nf8
{[%clk 0:02:28]} 16. Nb6 {[%clk 0:02:17.6]} 16... Rb8 {[%clk 0:02:26.6]} 17. Nc4
{[%clk 0:02:07.4]} 17... Ng6 {[%clk 0:02:23.7]} 18. Nd6 {[%clk 0:02:06.1]} 18...
Rd8 {[%clk 0:02:18.2]} 19. Ng5 {[%clk 0:02:04.9]} 19... Bxd6 {[%clk 0:02:11.2]}
20. cxd6 {[%clk 0:02:00.5]} 20... Rxd6 {[%clk 0:02:12.1]} 21. Bc4 {[%clk
0:01:55.7]} 21... Be6 {[%clk 0:01:45.6]} 22. Bxe6 {[%clk 0:01:46.5]} 22... fxe6
{[%clk 0:01:42.7]} 23. Rxd6 {[%clk 0:01:45.9]} 23... Qxd6 {[%clk 0:01:43.6]} 24.
Qxc6 {[%clk 0:01:46.5]} 24... Qxc6 {[%clk 0:01:34.3]} 25. Rxc6 {[%clk
0:01:47.4]} 25... h6 {[%clk 0:01:28.8]} 26. Nxe6 {[%clk 0:01:45.7]} 26... Nxe4
{[%clk 0:01:29.4]} 27. Rc7 {[%clk 0:01:38.8]} 27... Nf8 {[%clk 0:01:04.4]} 28.
Nxg7 {[%clk 0:01:30]} 28... Rd8 {[%clk 0:00:43.3]} 29. Nf5 {[%clk 0:01:30.2]}
29... Rd1+ {[%clk 0:00:41.1]} 30. Kh2 {[%clk 0:01:30.4]} 30... Rb1 {[%clk
0:00:42]} 31. Nxh6+ {[%clk 0:01:22.9]} 31... Kh8 {[%clk 0:00:41.7]} 32. Nf7+
{[%clk 0:01:23.4]} 32... Kg7 {[%clk 0:00:41.4]} 33. Ng5+ {[%clk 0:01:21.8]} 1-0

[Event "Early-Titled-Tuesday-Blitz-September-26-2023"]
[Site "Chess.com"]
[Date "2023.09.26"]
[Round "10"]
[White "pinguino120"]
[Black "carloseduar100"]
[Result "0-1"]
[WhiteElo "2221"]
[BlackElo "2334"]
[TimeControl "180+1"]
[EndTime "9:54:28 PDT"]
[Termination "carloseduar100 won by resignation"]

1. e4 {[%clk 0:03:00.9]} 1... e6 {[%clk 0:03:00]} 2. d4 {[%clk 0:03:00.6]} 2...
d5 {[%clk 0:03:00.9]} 3. Nc3 {[%clk 0:03:00.4]} 3... Nf6 {[%clk 0:03:01.3]} 4.
e5 {[%clk 0:03:00.1]} 4... Nfd7 {[%clk 0:03:01.5]} 5. f4 {[%clk 0:03:00.4]} 5...
c5 {[%clk 0:03:01.4]} 6. Nf3 {[%clk 0:02:59.6]} 6... Nc6 {[%clk 0:03:02.1]} 7.
Be3 {[%clk 0:02:59.2]} 7... Qb6 {[%clk 0:03:02.2]} 8. Na4 {[%clk 0:02:56.5]}
8... Qc7 {[%clk 0:03:02.2]} 9. Nxc5 {[%clk 0:02:53.4]} 9... Nxd4 {[%clk
0:03:02.2]} 10. Nxd4 {[%clk 0:02:39.7]} 10... Bxc5 {[%clk 0:02:59.3]} 11. c3
{[%clk 0:02:39.4]} 11... O-O {[%clk 0:02:58.3]} 12. Bd3 {[%clk 0:02:38]} 12...
g6 {[%clk 0:02:58.4]} 13. h4 {[%clk 0:02:34.2]} 13... h5 {[%clk 0:02:56.1]} 14.
g4 {[%clk 0:02:30.2]} 14... hxg4 {[%clk 0:02:55.2]} 15. Qxg4 {[%clk 0:02:31.1]}
15... Kg7 {[%clk 0:02:50.7]} 16. h5 {[%clk 0:02:30]} 16... Rh8 {[%clk
0:02:50.6]} 17. hxg6 {[%clk 0:02:07.9]} 17... Rxh1+ {[%clk 0:02:43.9]} 18. Kf2
{[%clk 0:02:07.8]} 18... f5 {[%clk 0:02:40.7]} 19. Nxe6+ {[%clk 0:01:59.3]}
19... Kg8 {[%clk 0:02:39.9]} 20. Qxf5 {[%clk 0:01:47.9]} 20... Bxe3+ {[%clk
0:02:38.5]} 21. Kxe3 {[%clk 0:01:48.8]} 21... Rh3+ {[%clk 0:01:26.5]} 22. Qxh3
{[%clk 0:00:45.5]} 22... Qb6+ {[%clk 0:01:21]} 23. Nd4 {[%clk 0:00:22.4]} 23...
Nf6 {[%clk 0:01:19.7]} 24. Qh6 {[%clk 0:00:13.2]} 24... Ng4+ {[%clk 0:01:15.9]}
25. Kd2 {[%clk 0:00:10.2]} 25... Nxh6 {[%clk 0:01:16.6]} 0-1

[Event "Early-Titled-Tuesday-Blitz-September-26-2023"]
[Site "Chess.com"]
[Date "2023.09.26"]
[Round "10"]
[White "Caroexpert"]
[Black "Kostya0705"]
[Result "1-0"]
[WhiteElo "2462"]
[BlackElo "2572"]
[TimeControl "180+1"]
[EndTime "9:54:31 PDT"]
[Termination "Caroexpert won by resignation"]

1. d4 {[%clk 0:03:00.9]} 1... Nf6 {[%clk 0:02:57.4]} 2. c4 {[%clk 0:03:01.4]}
2... e6 {[%clk 0:02:45.1]} 3. Nc3 {[%clk 0:03:01.6]} 3... Bb4 {[%clk 0:02:45.2]}
4. e3 {[%clk 0:03:01.8]} 4... O-O {[%clk 0:02:45.4]} 5. Bd3 {[%clk 0:03:02.4]}
5... c5 {[%clk 0:02:45.7]} 6. Ne2 {[%clk 0:03:00.4]} 6... b6 {[%clk 0:02:46.2]}
7. a3 {[%clk 0:02:59.7]} 7... Bxc3+ {[%clk 0:02:45.7]} 8. Nxc3 {[%clk
0:02:58.4]} 8... Bb7 {[%clk 0:02:46.6]} 9. O-O {[%clk 0:02:57]} 9... cxd4 {[%clk
0:02:46.8]} 10. exd4 {[%clk 0:02:57.5]} 10... d5 {[%clk 0:02:47.3]} 11. Bg5
{[%clk 0:02:55.8]} 11... dxc4 {[%clk 0:02:42.4]} 12. Bxc4 {[%clk 0:02:55]} 12...
Nbd7 {[%clk 0:02:41.8]} 13. d5 {[%clk 0:02:52.5]} 13... e5 {[%clk 0:02:32.7]}
14. Rc1 {[%clk 0:02:42.8]} 14... h6 {[%clk 0:02:31.2]} 15. Bh4 {[%clk
0:02:42.5]} 15... Rc8 {[%clk 0:02:30]} 16. Ba2 {[%clk 0:02:42.1]} 16... a6
{[%clk 0:02:23.8]} 17. Re1 {[%clk 0:02:41]} 17... b5 {[%clk 0:02:23.6]} 18. Qd2
{[%clk 0:02:15.2]} 18... Qb6 {[%clk 0:02:06.1]} 19. d6 {[%clk 0:02:03.7]} 19...
Rfd8 {[%clk 0:02:02.1]} 20. Rcd1 {[%clk 0:02:03.1]} 20... a5 {[%clk 0:01:59.3]}
21. b4 {[%clk 0:01:43.4]} 21... axb4 {[%clk 0:01:54.9]} 22. axb4 {[%clk
0:01:44.3]} 22... Rc6 {[%clk 0:01:47.4]} 23. Nd5 {[%clk 0:01:33.7]} 23... Qa6
{[%clk 0:01:30.1]} 24. Ne7+ {[%clk 0:01:02.1]} 24... Kf8 {[%clk 0:01:23.5]} 25.
Nxc6 {[%clk 0:00:52.2]} 25... Qxc6 {[%clk 0:01:24.4]} 26. f3 {[%clk 0:00:51.1]}
26... Ra8 {[%clk 0:01:19.6]} 27. Bxf6 {[%clk 0:00:44.1]} 27... Nxf6 {[%clk
0:01:18.8]} 28. Rxe5 {[%clk 0:00:44.6]} 28... Nd7 {[%clk 0:01:08.9]} 29. Re7
{[%clk 0:00:38]} 1-0